bitfinex/quotes_BTCUSD_20250417
["timestamp","ask_amount","ask_price","bid_price","bid_amount"]
[1744887800799,4.001e-05,84390.0,84389.0,1.25744562]
[1744887804398,4.001e-05,84390.0,84389.0,1.29067329]
[1744887804771,8.001e-05,84390.0,84389.0,1.29067329]
[1744887805613,8.001e-05,84390.0,84389.0,1.29895902]
[1744887807383,8.001e-05,84390.0,84389.0,1.27677852]
[1744887808409,8.001e-05,84390.0,84389.0,1.29896092]
[1744887811649,8.001e-05,84390.0,84389.0,1.29996092]
[1744887812659,8.001e-05,84390.0,84389.0,1.31450177]
[1744887818497,8.001e-05,84390.0,84389.0,1.31550177]
[1744887820210,8.001e-05,84390.0,84389.0,1.30721604]
[1744887820631,8.001e-05,84390.0,84389.0,1.28503364]
[1744887822546,0.0008422,84399.0,84398.0,0.57697244]
[1744887822748,0.0008422,84399.0,84398.0,0.7109612]
[1744887823762,0.0008422,84399.0,84398.0,0.7139612]
[1744887824159,0.0008422,84399.0,84398.0,0.7109612]
[1744887824359,0.0008422,84399.0,84398.0,0.7139612]
[1744887824574,0.0008422,84399.0,84398.0,1.14769545]
[1744887825152,0.0008422,84399.0,84398.0,1.14469545]
[1744887825515,0.0008422,84399.0,84398.0,1.14769545]
[1744887825721,0.0008422,84399.0,84398.0,1.15651549]
[1744887829505,0.0008422,84399.0,84398.0,1.1675503]
[1744887830090,0.0008422,84399.0,84398.0,1.15651549]
[1744887830657,0.0008422,84399.0,84398.0,1.29063549]
[1744887831192,0.0008422,84399.0,84398.0,1.29163549]
[1744887843059,0.0930422,84399.0,84398.0,1.15764673]
[1744887843309,0.0930422,84399.0,84398.0,0.80882669]
[1744887844086,0.0930422,84399.0,84398.0,0.80582669]
[1744887844307,0.0930422,84399.0,84398.0,0.80482669]
[1744887844538,0.0930422,84399.0,84398.0,0.80682669]
[1744887847260,0.0930422,84399.0,84398.0,0.81786749]
[1744887848079,0.0930422,84399.0,84398.0,0.39906749]
[1744887848695,0.0930422,84399.0,84398.0,0.40734652]
[1744887848915,0.0930422,84399.0,84398.0,0.42951413]
[1744887850971,0.0473422,84399.0,84398.0,0.56350289]
[1744887852578,0.0473422,84399.0,84398.0,0.57233539]
[1744887852803,0.0473422,84399.0,84398.0,0.55779454]
[1744887853405,0.0473422,84399.0,84398.0,0.54951551]
[1744887853685,0.0473422,84399.0,84398.0,0.55779312]
[1744887857793,0.0008422,84399.0,84398.0,0.55779312]
[1744887860663,0.0008822,84399.0,84398.0,0.55779312]
[1744887865836,0.0008822,84399.0,84398.0,0.57233397]
[1744887868334,0.0008822,84399.0,84398.0,0.57333397]
[1744887871627,0.0008822,84399.0,84398.0,0.99313397]
[1744887873260,0.0008822,84399.0,84398.0,1.33313397]
[1744887880652,1e-08,84404.0,84403.0,0.35454085]
[1744887881039,1e-08,84410.0,84409.0,0.5914824]
[1744887881187,1e-08,84410.0,84409.0,0.71093031]
[1744887881402,0.00045217,84410.0,84409.0,0.73309792]
[1744887881800,0.00045217,84410.0,84409.0,0.74137553]
[1744887882220,0.0489,84429.0,84412.0,0.25147398]
[1744887882621,0.00097759,84413.0,84412.0,0.5257295]
[1744887882829,0.00097759,84413.0,84412.0,0.57930711]
[1744887882973,0.00097759,84413.0,84412.0,0.91930711]
[1744887883389,0.00097759,84413.0,84412.0,0.93034791]
[1744887883601,0.00097759,84413.0,84412.0,0.93534791]
[1744887884291,0.00097759,84413.0,84412.0,0.94134791]
[1744887885321,0.00097759,84413.0,84412.0,0.94234791]
[1744887886222,0.00097759,84413.0,84412.0,1.36114791]
[1744887887012,0.00097759,84413.0,84412.0,1.36014791]
[1744887887221,0.00097759,84413.0,84412.0,1.31484791]
[1744887887873,0.00097759,84413.0,84412.0,1.2926803]
[1744887888545,0.00097759,84413.0,84412.0,1.28440269]
[1744887891166,0.00097759,84413.0,84412.0,1.28640269]
[1744887891372,0.00097759,84413.0,84412.0,1.28540269]
[1744887891601,0.00097759,84413.0,84412.0,1.30850635]
[1744887892227,0.00097759,84413.0,84412.0,2.41658635]
[1744887892427,0.50545199,84420.0,84419.0,0.59145434]
[1744887892627,0.50545199,84420.0,84419.0,0.71090225]
[1744887892836,0.50545199,84420.0,84419.0,0.73300591]
[1744887893036,0.50545199,84420.0,84419.0,0.74404671]
[1744887893235,0.50545199,84420.0,84419.0,0.75228709]
[1744887893846,0.50545199,84420.0,84419.0,0.75628709]
[1744887895083,0.50545199,84420.0,84419.0,0.76028709]
[1744887895639,0.50545199,84420.0,84419.0,0.89292709]
[1744887897863,0.50545199,84420.0,84419.0,1.31172709]
[1744887901460,0.49343939,84420.0,84419.0,1.31172709]
[1744887901640,0.49343939,84420.0,84419.0,1.31372709]
[1744887903732,9.49343939,84420.0,84419.0,1.31372709]
[1744887904246,9.49343939,84420.0,84419.0,1.18108709]
[1744887904419,9.49343939,84420.0,84419.0,1.31428709]
[1744887904630,9.46660939,84420.0,84419.0,1.31428709]
[1744887909714,9.46660939,84420.0,84419.0,1.29218343]
[1744887909897,9.46660939,84420.0,84419.0,1.28114263]
[1744887910290,9.46660939,84420.0,84419.0,1.27290225]
[1744887912186,9.46660939,84420.0,84419.0,1.13970225]
[1744887912321,9.46660939,84420.0,84419.0,1.27290225]
[1744887915115,9.46660939,84420.0,84419.0,1.29506826]
[1744887915586,9.45773174,84420.0,84419.0,1.30607786]
[1744887916200,9.45773174,84420.0,84419.0,1.31433679]
[1744887922186,9.45773174,84420.0,84419.0,1.34526658]
[1744887922484,9.45773174,84420.0,84419.0,1.31433679]
[1744887922692,9.45773174,84420.0,84419.0,1.34526738]
[1744887923292,9.45773174,84420.0,84419.0,1.31433679]
[1744887925612,9.45773174,84420.0,84419.0,1.34528428]
[1744887926259,9.45773174,84420.0,84419.0,2.45316428]
[1744887926476,9.44885412,84420.0,84419.0,2.45316428]
[1744887926668,9.44885412,84420.0,84419.0,2.42221679]
[1744887927492,9.44885412,84420.0,84419.0,2.41120719]
[1744887929780,9.44885412,84420.0,84419.0,2.42224187]
[1744887930637,9.44885412,84420.0,84419.0,2.45321553]
[1744887931683,9.44885412,84420.0,84419.0,2.45421553]
[1744887932146,9.44885412,84420.0,84419.0,2.44318085]
[1744887932439,9.44885412,84420.0,84419.0,2.42101484]
[1744887934210,9.44885412,84420.0,84419.0,2.44320161]
[1744887934896,9.44885412,84420.0,84419.0,2.42101484]
[1744887935474,9.44885412,84420.0,84419.0,2.41275591]
[1744887939943,9.44885412,84420.0,84419.0,2.41244146]
[1744887941067,9.44885412,84420.0,84419.0,2.42071758]
[1744887942123,9.44885412,84420.0,84419.0,2.41244146]
[1744887946588,9.44885412,84420.0,84419.0,2.26470061]
[1744887946789,9.54435412,84420.0,84419.0,2.13104791]
[1744887947010,9.54435412,84420.0,84419.0,2.3679614]
[1744887947531,9.54435412,84420.0,84419.0,0.011]
[1744887947746,9.54435412,84420.0,84411.0,0.058]
[1744887947747,0.23693313,84412.0,84411.0,0.058]
[1744887947944,0.32973313,84412.0,84411.0,0.058]
[1744887948610,0.32773313,84412.0,84411.0,0.058]
[1744887949391,0.32773313,84412.0,84411.0,0.059]
[1744887950257,0.32773313,84412.0,84411.0,0.06]
[1744887950486,0.32773313,84412.0,84411.0,0.059]
[1744887951424,0.32873313,84412.0,84411.0,0.059]
[1744887953769,0.0958,84412.0,84411.0,0.059]
[1744887954003,0.0958,84412.0,84411.0,0.29593594]
[1744887954299,0.001,84412.0,84411.0,0.4299247]
[1744887956542,0.001,84412.0,84411.0,0.8487247]
[1744887959928,0.001,84412.0,84411.0,1.1887247]
[1744887960649,0.001,84412.0,84411.0,0.7699247]
[1744887961748,9.49495412,84420.0,84419.0,0.23691349]
[1744887962147,9.49595412,84420.0,84419.0,0.23691349]
[1744887963055,9.49895412,84420.0,84419.0,0.23691349]
[1744887963929,9.49995412,84420.0,84419.0,0.23691349]
[1744887971262,9.49995412,84420.0,84419.0,0.37063349]
[1744887988519,9.49995412,84420.0,84419.0,0.23691349]
[1744887991107,9.49995412,84420.0,84419.0,0.37063349]
[1744887992358,9.49995412,84420.0,84419.0,0.23691349]
[1744887992559,9.49995412,84420.0,84419.0,0.37019349]
[1744888003500,9.45385412,84420.0,84419.0,0.4896414]
[1744888004345,9.45285412,84420.0,84419.0,0.4896414]
[1744888005405,9.44985412,84420.0,84419.0,0.4896414]
[1744888008288,9.44989412,84420.0,84419.0,0.4896414]
[1744888008633,9.44993412,84420.0,84419.0,0.4896414]
[1744888008832,9.44997412,84420.0,84419.0,0.4896414]
[1744888009235,9.45001412,84420.0,84419.0,0.4896414]
[1744888011404,9.44901412,84420.0,84419.0,0.4896414]
[1744888017616,9.44901412,84420.0,84419.0,0.37019349]
[1744888026346,9.44901412,84420.0,84419.0,0.4896414]
[1744888040663,9.44901412,84420.0,84419.0,0.50418225]
[1744888041507,9.44901412,84420.0,84419.0,1.26398225]
[1744888041670,9.44901412,84420.0,84419.0,1.31348225]
[1744888042894,9.44901412,84420.0,84419.0,1.26398225]
[1744888048353,9.44905412,84420.0,84419.0,1.26398225]
[1744888049778,9.44909412,84420.0,84419.0,1.26398225]
[1744888055216,9.44909412,84420.0,84419.0,1.26306225]
[1744888065818,9.44909412,84420.0,84419.0,1.30946225]
[1744888066694,9.44909412,84420.0,84419.0,1.31146225]
[1744888067493,9.44909412,84420.0,84419.0,1.34248156]
[1744888068135,9.44909412,84420.0,84419.0,1.34448156]
[1744888068294,9.44909412,84420.0,84419.0,1.31346225]
[1744888069137,9.44909412,84420.0,84419.0,1.26706225]
[1744888071299,9.44909412,84420.0,84419.0,1.26606225]
[1744888082563,9.45009412,84420.0,84419.0,0.88224791]
[1744888082769,9.7348048,84420.0,84419.0,0.55512]
[1744888082975,9.49789412,84420.0,84419.0,0.13632]
[1744888083168,9.49789412,84420.0,84419.0,0.37323349]
[1744888083598,9.49789412,84420.0,84419.0,0.36923349]
[1744888083797,9.49789412,84420.0,84419.0,0.37123349]
[1744888084184,9.49789412,84420.0,84419.0,0.13432]
[1744888084385,9.49789412,84420.0,84419.0,0.13232]
[1744888085108,9.49789412,84420.0,84419.0,0.13432]
[1744888085378,9.49789412,84420.0,84419.0,0.4886814]
[1744888085545,9.45009412,84420.0,84419.0,0.4886814]
[1744888091496,9.45009412,84420.0,84419.0,0.4884814]
[1744888092011,9.45009412,84420.0,84419.0,0.84302225]
[1744888092429,9.46009412,84420.0,84419.0,1.26282225]
[1744888097725,9.46009412,84420.0,84419.0,2.37082225]
[1744888099838,9.46009412,84420.0,84419.0,2.37382225]
[1744888100315,9.46009412,84420.0,84419.0,2.37682225]
[1744888103049,9.46009412,84420.0,84419.0,2.24470225]
[1744888103260,9.46009412,84420.0,84419.0,2.37682225]
[1744888104000,9.46009412,84420.0,84419.0,2.3622814]
[1744888104936,9.46009412,84420.0,84419.0,2.3592814]
[1744888105410,9.46009412,84420.0,84419.0,2.3562814]
[1744888105563,9.46009412,84420.0,84419.0,2.3592814]
[1744888105768,9.46009412,84420.0,84419.0,2.3622814]
[1744888106038,9.46009412,84420.0,84419.0,2.3592814]
[1744888106315,9.46009412,84420.0,84419.0,2.3612814]
[1744888113778,9.46009412,84420.0,84419.0,2.2291614]
[1744888114075,9.46009412,84420.0,84419.0,2.3612814]
[1744888118434,9.46009412,84420.0,84419.0,1.2532814]
[1744888124427,9.46009412,84420.0,84419.0,1.1211614]
[1744888124636,9.46009412,84420.0,84419.0,1.2530814]
[1744888130789,9.46009412,84420.0,84419.0,0.79363349]
[1744888131256,9.45909412,84420.0,84419.0,0.79263349]
[1744888131452,9.46009412,84420.0,84419.0,0.79263349]
[1744888131827,9.46009412,84420.0,84419.0,0.79063349]
[1744888132225,9.46009412,84420.0,84419.0,0.78763349]
[1744888132589,9.46009412,84420.0,84419.0,0.36883349]
[1744888133532,9.46009412,84420.0,84419.0,0.36983349]
[1744888133677,9.46009412,84420.0,84419.0,0.37083349]
[1744888135200,9.46009412,84420.0,84419.0,0.37087349]
[1744888167052,9.46009412,84420.0,84419.0,0.23891349]
[1744888171735,9.7469048,84420.0,84419.0,0.002]
[1744888172077,9.9269048,84420.0,84419.0,0.002]
[1744888172684,9.9269048,84420.0,84419.0,0.001]
[1744888172883,9.9299048,84420.0,84419.0,0.001]
[1744888173243,0.23691629,84418.0,84417.0,0.13196]
[1744888174559,0.24291629,84418.0,84417.0,0.13196]
[1744888175926,0.29181629,84418.0,84417.0,0.13196]
[1744888176484,0.3139817,84418.0,84417.0,0.13196]
[1744888176690,0.23693313,84412.0,84411.0,0.058]
[1744888177813,0.23793313,84412.0,84411.0,0.058]
[1744888178176,0.23993313,84412.0,84411.0,0.058]
[1744888178554,0.28823313,84412.0,84411.0,0.058]
[1744888182836,0.23993313,84412.0,84411.0,0.058]
[1744888191807,0.26206979,84412.0,84411.0,0.058]
[1744888192123,0.26106979,84412.0,84411.0,0.058]
[1744888192354,0.26306979,84412.0,84411.0,0.058]
[1744888193212,0.26118215,84412.0,84411.0,0.058]
[1744888193442,0.23904549,84412.0,84411.0,0.058]
[1744888193620,0.24204549,84412.0,84411.0,0.058]
[1744888197302,0.26419246,84412.0,84411.0,0.058]
[1744888208187,0.38464037,84412.0,84411.0,0.058]
[1744888208536,0.48344037,84412.0,84411.0,0.058]
[1744888208758,0.49176174,84412.0,84411.0,0.058]
[1744888209235,0.48976174,84412.0,84411.0,0.058]
[1744888210270,0.65476174,84412.0,84411.0,0.058]
[1744888210849,0.23698928,84392.0,84391.0,0.0009882]
[1744888211051,0.39698928,84392.0,84391.0,0.0009882]
[1744888211264,0.23700332,84387.0,84386.0,0.13248]
[1744888212142,0.23700613,84386.0,84385.0,0.0008424]
[1744888212699,0.25917929,84386.0,84385.0,0.0008424]
[1744888212915,0.26748732,84386.0,84385.0,0.0008424]
[1744888213323,0.38693523,84386.0,84385.0,0.0008424]
[1744888213624,0.38702867,84386.0,84385.0,0.0008424]
[1744888214093,0.37872064,84386.0,84385.0,0.0008424]
[1744888214625,0.38272064,84386.0,84385.0,0.0008424]
[1744888215030,0.38172064,84386.0,84385.0,0.0008424]
[1744888215437,0.43302064,84386.0,84385.0,0.0008424]
[1744888217501,0.61302064,84386.0,84385.0,0.0008424]
[1744888218455,0.61102064,84386.0,84385.0,0.0008424]
[1744888218816,0.61402064,84386.0,84385.0,0.0008424]
[1744888219156,0.61102064,84386.0,84385.0,0.0008424]
[1744888219356,0.60802064,84386.0,84385.0,0.0008424]
[1744888219840,0.61202064,84386.0,84385.0,0.0008424]
[1744888220034,0.60802064,84386.0,84385.0,0.0008424]
[1744888220465,0.61402064,84386.0,84385.0,0.0008424]
[1744888220985,0.61702064,84386.0,84385.0,0.0008424]
[1744888221276,0.61102064,84386.0,84385.0,0.0008424]
[1744888221501,0.61702064,84386.0,84385.0,0.0008424]
[1744888221630,0.61402064,84386.0,84385.0,0.0008424]
[1744888222128,0.61802064,84386.0,84385.0,0.0008424]
[1744888225745,0.66632064,84386.0,84385.0,0.0008424]
[1744888226341,0.6745999,84386.0,84385.0,0.0008424]
[1744888226827,0.6645999,84386.0,84385.0,0.0008424]
[1744888227048,0.6775999,84386.0,84385.0,0.0018424]
[1744888229820,0.6776399,84386.0,84385.0,0.0018424]
[1744888230301,0.6776799,84386.0,84385.0,0.0018424]
[1744888230634,0.6777199,84386.0,84385.0,0.0018424]
[1744888233026,1.0177199,84386.0,84385.0,0.0018424]
[1744888234505,1.47857271,84386.0,84385.0,0.0018424]
[1744888236045,1.60317271,84386.0,84385.0,0.0018424]
[1744888236625,1.60317271,84386.0,84385.0,1e-08]
[1744888236837,1.61871356,84386.0,84385.0,1e-08]
[1744888237858,0.5770258,84379.0,84378.0,0.0008428]
[1744888238127,0.75647371,84379.0,84378.0,0.0008428]
[1744888238272,1.17565297,84379.0,84378.0,0.0008428]
[1744888238473,1.24350728,84379.0,84378.0,0.0008428]
[1744888239769,1.24850728,84379.0,84378.0,0.0008428]
[1744888240296,1.29710728,84379.0,84378.0,0.0018428]
[1744888240501,1.30310728,84379.0,84378.0,0.0018428]
[1744888243072,1.42770728,84379.0,84378.0,0.0018428]
[1744888243647,0.2370848,84358.0,84356.0,0.0014027]
[1744888243850,0.52653271,84358.0,84356.0,0.0014027]
[1744888244090,0.57708761,84357.0,84356.0,0.0004213]
[1744888244271,0.85653552,84357.0,84356.0,0.0004213]
[1744888244482,0.91643329,84357.0,84356.0,0.0004213]
[1744888244653,0.92471255,84357.0,84356.0,0.0004213]
[1744888245055,0.92471255,84357.0,84355.0,1e-08]
[1744888245056,0.62529042,84356.0,84355.0,1e-08]
[1744888245280,0.90473833,84356.0,84355.0,1e-08]
[1744888245479,1.46405844,84356.0,84355.0,1e-08]
[1744888245777,1.49623008,84356.0,84355.0,1e-08]
[1744888246294,1.50123008,84356.0,84355.0,1e-08]
[1744888247273,1.46905844,84356.0,84355.0,1e-08]
[1744888247479,1.47505844,84356.0,84355.0,0.00100001]
[1744888248019,1.46735759,84356.0,84355.0,0.00100001]
[1744888248347,1.33491759,84356.0,84355.0,0.00100001]
[1744888252333,1.28671759,84356.0,84355.0,0.00100001]
[1744888252504,1.12671759,84356.0,84355.0,0.00100001]
[1744888252874,1.11843833,84356.0,84355.0,0.00100001]
[1744888253480,1.14054824,84356.0,84355.0,0.00100001]
[1744888253660,1.14883945,84356.0,84355.0,0.00100001]
[1744888255831,0.73793945,84356.0,84355.0,0.00100001]
[1744888258998,0.74793945,84356.0,84355.0,0.00100001]
[1744888261218,0.74797945,84356.0,84355.0,0.00100001]
[1744888261819,0.74801945,84356.0,84355.0,0.00100001]
[1744888262159,0.74805945,84356.0,84355.0,0.00100001]
[1744888262593,0.74809945,84356.0,84355.0,0.00100001]
[1744888262981,0.74813945,84356.0,84355.0,0.00100001]
[1744888263777,0.84563945,84356.0,84355.0,0.00100001]
[1744888264771,0.79683945,84356.0,84355.0,0.00100001]
[1744888265727,0.79783945,84356.0,84355.0,0.00100001]
[1744888266605,0.79783945,84356.0,84355.0,1e-08]
[1744888266806,0.57710166,84352.0,84351.0,1e-08]
[1744888267024,0.86654957,84352.0,84351.0,1e-08]
[1744888267381,1.02780033,84352.0,84351.0,1e-08]
[1744888267704,0.23714946,84335.0,84332.0,0.000421]
[1744888267943,0.37870728,84335.0,84332.0,0.000421]
[1744888268692,0.38699849,84335.0,84332.0,0.000421]
[1744888268901,0.38999849,84335.0,84332.0,0.000421]
[1744888271169,0.39199849,84335.0,84334.0,0.0018424]
[1744888271395,0.40199849,84335.0,84334.0,0.0018424]
[1744888274182,0.24904532,84322.0,84316.0,0.28303613]
[1744888274503,0.23718912,84321.0,84318.0,0.23819184]
[1744888274671,0.01185944,84321.0,84318.0,0.23719494]
[1744888275433,0.01185944,84321.0,84318.0,0.2376471]
[1744888275645,0.01285944,84321.0,84318.0,0.2416471]
[1744888275890,0.001,84321.0,84319.0,0.23719374]
[1744888276755,0.001,84321.0,84320.0,0.23719165]
[1744888276975,0.001,84321.0,84318.0,0.24164943]
[1744888277180,0.01185944,84321.0,84319.0,0.0485]
[1744888277618,0.01285944,84321.0,84319.0,0.0515]
[1744888277819,0.23719165,84320.0,84319.0,0.0485]
[1744888278281,0.25004846,84321.0,84319.0,0.0485]
[1744888278708,0.23719165,84320.0,84319.0,0.0515]
[1744888279081,0.23719165,84320.0,84319.0,0.0485]
[1744888280690,0.23819165,84320.0,84319.0,0.0515]
[1744888281066,0.001,84320.0,84319.0,0.0515]
[1744888281506,0.23819165,84320.0,84319.0,0.0515]
[1744888281827,0.23819165,84320.0,84319.0,0.003]
[1744888282451,0.26036034,84320.0,84319.0,0.003]
[1744888283859,0.37980825,84320.0,84319.0,0.003]
[1744888285994,0.3908902,84320.0,84319.0,0.003]
[1744888286188,0.39920169,84320.0,84319.0,0.003]
[1744888286844,0.54920169,84320.0,84319.0,0.003]
[1744888287076,0.53811974,84320.0,84319.0,0.003]
[1744888288158,0.58571974,84320.0,84319.0,0.003]
[1744888288312,0.58771974,84320.0,84319.0,0.003]
[1744888289593,0.59879887,84320.0,84319.0,0.003]
[1744888290346,0.23719446,84319.0,84318.0,0.00045216]
[1744888290506,0.38881106,84319.0,84318.0,0.00045216]
[1744888291119,0.39712255,84319.0,84318.0,0.00045216]
[1744888291287,0.40820168,84319.0,84318.0,0.00045216]
[1744888291483,0.40920168,84319.0,84318.0,0.00045216]
[1744888291926,0.40920168,84319.0,84318.0,0.00145216]
[1744888292240,0.74820168,84319.0,84318.0,0.00045216]
[1744888292380,0.79940168,84319.0,84318.0,0.00045216]
[1744888292941,0.79740168,84319.0,84318.0,0.00045216]
[1744888293766,0.79840168,84319.0,84318.0,0.00045216]
[1744888293971,0.79740168,84319.0,84318.0,0.00045216]
[1744888294185,0.2372451,84301.0,84293.0,0.0004214]
[1744888294364,0.35669301,84301.0,84300.0,0.00087381]
[1744888294572,0.3788617,84301.0,84300.0,0.00087381]
[1744888295470,0.40024724,84301.0,84300.0,0.00287381]
[1744888296708,0.39194083,84301.0,84300.0,0.00287381]
[1744888299536,0.39094083,84301.0,84300.0,0.00287381]
[1744888299734,0.39294083,84301.0,84300.0,0.00287381]
[1744888300241,0.39194083,84301.0,84300.0,0.00087381]
[1744888300616,0.39294083,84301.0,84300.0,0.00087381]
[1744888301583,0.39094083,84301.0,84300.0,0.00087381]
[1744888301782,0.39294083,84301.0,84300.0,0.00087381]
[1744888304539,0.37077214,84301.0,84300.0,0.00087381]
[1744888304762,0.35969301,84301.0,84300.0,0.00087381]
[1744888307396,0.38899301,84301.0,84300.0,0.00087381]
[1744888310642,0.41114323,84301.0,84300.0,0.00087381]
[1744888311205,0.38999301,84301.0,84300.0,0.00087381]
[1744888312222,0.42323032,84301.0,84300.0,0.00087381]
[1744888315820,0.42327032,84301.0,84300.0,0.00087381]
[1744888316250,0.43158795,84301.0,84300.0,0.00087381]
[1744888316643,0.43162795,84301.0,84300.0,0.00087381]
[1744888317025,0.43166795,84301.0,84300.0,0.00087381]
[1744888324787,0.44166795,84301.0,84300.0,0.00087381]
[1744888329227,0.31222004,84301.0,84300.0,0.00087381]
[1744888329410,0.07497494,84301.0,84300.0,0.00087381]
[1744888329617,0.07497494,84301.0,84300.0,0.23812173]
[1744888329819,0.0444991,84301.0,84300.0,0.23812173]
[1744888331212,0.0434991,84301.0,84300.0,0.23812173]
[1744888331413,0.2807442,84301.0,84300.0,0.00087381]
[1744888331671,0.2817442,84301.0,84300.0,0.00187381]
[1744888331971,0.2797442,84301.0,84300.0,0.00187381]
[1744888332275,0.2696651,84301.0,84300.0,0.00187381]
[1744888334584,0.38911301,84301.0,84300.0,0.00187381]
[1744888335183,0.39911301,84301.0,84300.0,0.00187381]
[1744888335381,0.39721301,84301.0,84300.0,0.00087381]
[1744888335769,0.42042865,84301.0,84300.0,0.00087381]
[1744888336320,0.46882865,84301.0,84300.0,0.00187381]
[1744888336521,0.80782865,84301.0,84300.0,0.00087381]
[1744888336722,0.80982865,84301.0,84300.0,0.00087381]
[1744888337307,0.80782865,84301.0,84300.0,0.00087381]
[1744888337506,0.81182865,84301.0,84300.0,0.00087381]
[1744888337667,0.23726481,84294.0,84293.0,0.0004214]
[1744888337867,0.48671272,84294.0,84293.0,0.0004214]
[1744888338269,0.50892836,84294.0,84293.0,0.0004214]
[1744888338480,0.55642836,84294.0,84293.0,0.0004214]
[1744888339215,0.55842836,84294.0,84293.0,0.0004214]
[1744888340104,0.56142836,84294.0,84293.0,0.0004214]
[1744888341433,0.57252146,84294.0,84293.0,0.0004214]
[1744888341810,0.57262146,84294.0,84293.0,0.0004214]
[1744888344105,0.56152836,84294.0,84293.0,0.0004214]
[1744888345417,0.57337441,84294.0,84293.0,0.0004214]
[1744888345827,0.56152836,84294.0,84293.0,0.0004214]
[1744888346028,0.57261671,84294.0,84293.0,0.0004214]
[1744888348570,0.96031671,84294.0,84293.0,0.0004214]
[1744888349699,0.33089014,84285.0,84270.0,0.0004214]
[1744888349911,0.54255369,84285.0,84270.0,0.0004214]
[1744888350466,0.23732956,84271.0,84270.0,0.0004214]
[1744888350665,0.35677747,84271.0,84270.0,0.0004214]
[1744888350990,0.37899311,84271.0,84270.0,0.0004214]
[1744888351607,0.39107275,84271.0,84270.0,0.0004214]
[1744888351808,0.39107275,84271.0,84270.0,0.00055699]
[1744888352419,0.43757275,84271.0,84270.0,0.00055699]
[1744888353348,0.43857275,84271.0,84270.0,0.00055699]
[1744888353589,0.43757275,84271.0,84270.0,0.00055699]
[1744888353950,0.43957275,84271.0,84270.0,0.00055699]
[1744888355143,0.43857275,84271.0,84270.0,0.00055699]
[1744888355340,0.41635711,84271.0,84270.0,0.00055699]
[1744888355559,0.41627747,84271.0,84270.0,0.00055699]
[1744888356174,0.41527747,84271.0,84270.0,0.00055699]
[1744888356573,0.43741235,84271.0,84270.0,0.00055699]
[1744888356882,0.44041235,84271.0,84270.0,0.00055699]
[1744888357844,0.45147859,84271.0,84270.0,0.00055699]
[1744888360361,0.44847859,84271.0,84270.0,0.00055699]
[1744888360720,0.45247859,84271.0,84270.0,0.00055699]
[1744888361527,0.45047859,84271.0,84270.0,0.00055699]
[1744888361732,0.45347859,84271.0,84270.0,0.00055699]
[1744888365359,0.39797859,84271.0,84270.0,0.00055699]
[1744888366073,0.24921674,84264.0,84261.0,0.002]
[1744888366277,0.24921674,84264.0,84261.0,0.00213568]
[1744888366887,0.01186746,84264.0,84262.0,0.23735414]
[1744888367506,0.24921722,84264.0,84261.0,0.00213568]
[1744888367716,0.23735373,84263.0,84261.0,0.00213568]
[1744888368158,0.01186746,84264.0,84261.0,0.00213568]
[1744888368443,0.23735368,84263.0,84261.0,0.00213568]
[1744888368676,0.23735368,84263.0,84262.0,0.001]
[1744888368848,0.23735368,84263.0,84261.0,0.00213568]
[1744888369049,0.23735368,84263.0,84261.0,0.00313568]
[1744888369258,0.23835368,84263.0,84261.0,0.00313568]
[1744888369603,0.23735491,84262.0,84261.0,0.00313568]
[1744888370781,0.23835368,84263.0,84261.0,0.00213568]
[1744888371135,0.001,84262.0,84261.0,0.00313568]
[1744888371525,0.002,84262.0,84261.0,0.00313568]
[1744888371764,0.002,84262.0,84261.0,0.00213568]
[1744888372002,0.001,84262.0,84261.0,0.23949341]
[1744888372204,0.001,84262.0,84261.0,0.24049341]
[1744888372361,0.001,84262.0,84261.0,0.23949341]
[1744888372772,0.002,84262.0,84261.0,0.28899341]
[1744888374224,0.001,84262.0,84261.0,0.28799341]
[1744888374362,0.02584491,84265.0,84264.0,0.23734928]
[1744888375359,0.02584491,84265.0,84263.0,0.23735131]
[1744888375572,0.02584491,84265.0,84264.0,0.23734928]
[1744888375978,0.02684491,84265.0,84264.0,0.23834928]
[1744888377338,0.02584491,84265.0,84264.0,0.23734928]
[1744888377747,0.02684491,84265.0,84264.0,0.23734928]
[1744888377891,0.001,84265.0,84264.0,0.23734928]
[1744888378088,0.001,84265.0,84264.0,0.23834928]
[1744888378334,0.002,84265.0,84264.0,0.23834928]
[1744888381647,0.002,84265.0,84264.0,0.001]
[1744888381816,0.002,84265.0,84264.0,0.23834928]
[1744888382413,0.002,84265.0,84264.0,0.001]
[1744888382618,0.23934646,84265.0,84264.0,0.001]
[1744888383316,0.002,84265.0,84264.0,0.001]
[1744888384934,0.002,84265.0,84263.0,0.2126516]
[1744888385662,0.01386732,84265.0,84263.0,0.23735166]
[1744888387313,0.01186732,84265.0,84263.0,0.23735166]
[1744888387664,0.01286732,84265.0,84263.0,0.23735166]
[1744888388293,0.001,84265.0,84264.0,0.23734928]
[1744888390350,0.24921304,84266.0,84263.0,0.23735166]
[1744888390555,0.01186718,84266.0,84263.0,0.23735166]
[1744888390714,0.001,84265.0,84264.0,0.23734928]
[1744888391460,0.01186718,84266.0,84264.0,0.23734928]
[1744888391681,0.001,84266.0,84264.0,0.23734928]
[1744888392107,0.25020923,84267.0,84264.0,0.23734928]
[1744888392279,0.0011,84265.0,84264.0,0.23734928]
[1744888392625,0.0012,84265.0,84264.0,0.23734928]
[1744888392802,0.0013,84265.0,84264.0,0.23734928]
[1744888393205,0.0014,84265.0,84264.0,0.23734928]
[1744888393915,0.0004,84265.0,84264.0,0.23734928]
[1744888394932,0.0005,84265.0,84264.0,0.23734928]
[1744888395203,0.0006,84265.0,84263.0,0.23735182]
[1744888395412,0.0007,84265.0,84263.0,0.23735182]
[1744888395785,0.0017,84265.0,84263.0,0.23735182]
[1744888396427,0.0007,84265.0,84263.0,0.23735182]
[1744888397319,0.0017,84265.0,84263.0,0.23735182]
[1744888397519,0.25091437,84265.0,84262.0,0.23735028]
[1744888397721,0.25091437,84265.0,84261.0,0.00213568]
[1744888397722,0.23735491,84262.0,84261.0,0.00213568]
[1744888397947,0.40300282,84262.0,84261.0,0.00213568]
[1744888398753,0.40400282,84262.0,84261.0,0.00213568]
[1744888398932,0.41510845,84262.0,84261.0,0.00213568]
[1744888400399,0.41710845,84262.0,84261.0,0.00213568]
[1744888403218,0.40600282,84262.0,84261.0,0.00213568]
[1744888403597,0.45450282,84262.0,84261.0,0.00213568]
[1744888404711,0.45250282,84262.0,84261.0,0.00213568]
[1744888404893,0.46350282,84262.0,84261.0,0.00213568]
[1744888405393,0.46550282,84262.0,84261.0,0.00213568]
[1744888411171,0.59010282,84262.0,84261.0,0.00213568]
[1744888411344,0.46550282,84262.0,84261.0,0.00213568]
[1744888420522,0.46650282,84262.0,84261.0,0.00213568]
[1744888421902,0.41800282,84262.0,84261.0,0.00213568]
[1744888427468,0.37180282,84262.0,84261.0,0.00213568]